bitfinex/quotes_BTCUSD_20250123
["timestamp","ask_amount","ask_price","bid_price","bid_amount"]
[1737646155285,0.13948933,104120.0,104080.0,0.096079]
[1737646155482,0.096067,104100.0,104080.0,0.096075]
[1737646155864,0.630286,104110.0,104090.0,0.288205]
[1737646156034,0.438171,104110.0,104090.0,0.480345]
[1737646156333,0.096053,104110.0,104070.0,2.192161]
[1737646156502,0.096054,104110.0,104070.0,2.192176]
[1737646156712,0.35763233,104120.0,104100.0,0.288178]
[1737646156927,0.54972933,104120.0,104100.0,0.288161]
[1737646157145,0.0493,104180.0,104120.0,0.15]
[1737646157346,0.33777974,104180.0,104160.0,0.096006]
[1737646157576,0.33777974,104180.0,104170.0,0.095996]
[1737646157577,0.04979774,104180.0,104170.0,0.095996]
[1737646157778,0.04979774,104180.0,104110.0,0.02]
[1737646157983,0.096017,104150.0,104100.0,0.242104]
[1737646158168,0.288056,104150.0,104130.0,0.288091]
[1737646158425,0.288058,104150.0,104130.0,0.480158]
[1737646158634,0.288058,104150.0,104130.0,0.480149]
[1737646158789,0.288058,104150.0,104130.0,0.480143]
[1737646158995,0.096019,104150.0,104130.0,0.480139]
[1737646159197,0.192034,104150.0,104120.0,0.192073]
[1737646159400,0.192034,104150.0,104130.0,0.096033]
[1737646159401,0.09603,104140.0,104130.0,0.096033]
[1737646159602,0.384074,104150.0,104130.0,0.2881]
[1737646159867,0.09602,104150.0,104130.0,0.096029]
[1737646160072,0.288053,104150.0,104130.0,0.480142]
[1737646160464,0.480094,104150.0,104130.0,0.288084]
[1737646160611,0.096016,104150.0,104140.0,0.096024]
[1737646160807,0.288032,104160.0,104140.0,0.28806]
[1737646161074,0.28852943,104160.0,104140.0,0.480099]
[1737646161439,0.28852743,104160.0,104140.0,0.28806]
[1737646161774,0.28852743,104160.0,104150.0,0.096015]
[1737646161775,0.09650543,104160.0,104150.0,0.096015]
[1737646162127,0.48053143,104160.0,104140.0,0.288053]
[1737646162338,0.28851843,104160.0,104140.0,0.480092]
[1737646162739,0.28851843,104160.0,104150.0,0.096015]
[1737646162935,0.28851843,104160.0,104140.0,0.480092]
[1737646163177,0.28851843,104160.0,104150.0,0.096015]
[1737646163368,0.28851843,104160.0,104140.0,0.480091]
[1737646163587,0.01052018,104160.0,104150.0,0.096015]
[1737646163812,0.00049743,104160.0,104150.0,0.246015]
[1737646163972,4.3e-07,104160.0,104150.0,0.319015]
[1737646164180,3.03483747,104200.0,104190.0,0.095978]
[1737646164380,3.03498672,104200.0,104190.0,0.095978]
[1737646167551,3.03498672,104200.0,104190.0,0.268978]
[1737646167744,3.03498672,104200.0,104190.0,0.245978]
[1737646168233,3.03498672,104200.0,104180.0,0.287939]
[1737646168412,3.03498672,104200.0,104190.0,0.095978]
[1737646168819,3.32289872,104200.0,104180.0,0.28794]
[1737646169088,3.13095972,104200.0,104190.0,0.095978]
[1737646169249,3.03498672,104200.0,104190.0,0.095978]
[1737646170427,3.13095572,104200.0,104190.0,0.095978]
[1737646170632,3.32289572,104200.0,104190.0,0.095978]
[1737646170816,3.13095572,104200.0,104190.0,0.095978]
[1737646171020,3.13095972,104200.0,104180.0,0.479903]
[1737646171269,3.32289872,104200.0,104180.0,0.479903]
[1737646171485,3.32289872,104200.0,104170.0,0.20180223]
[1737646171486,0.191958,104190.0,104160.0,0.384006]
[1737646171613,0.191958,104190.0,104170.0,0.09599]
[1737646171823,3.40600672,104200.0,104180.0,0.287948]
[1737646172077,3.40600672,104200.0,104180.0,0.479913]
[1737646172227,3.59795672,104200.0,104180.0,0.287948]
[1737646172627,3.21405772,104200.0,104180.0,0.191961]
[1737646172852,3.11808672,104200.0,104190.0,0.095978]
[1737646173062,2.8677325,104200.0,104190.0,0.315978]
[1737646173194,2.8101505,104200.0,104190.0,0.295978]
[1737646173403,2.8101505,104200.0,104190.0,0.245978]
[1737646173607,2.8101505,104200.0,104190.0,0.095978]
[1737646175263,2.8101505,104200.0,104190.0,0.268978]
[1737646175493,2.7525685,104200.0,104190.0,0.338978]
[1737646175696,2.25866917,104200.0,104190.0,0.288978]
[1737646175902,1.9846996,104200.0,104190.0,2.344678]
[1737646176142,1.9214176,104200.0,104190.0,2.344678]
[1737646176315,1.37263492,104200.0,104190.0,2.35431759]
[1737646176582,1.06343141,104200.0,104190.0,2.3838186]
[1737646176791,2.12079337,104210.0,104200.0,0.295969]
[1737646177011,2.07525499,104210.0,104200.0,1.24811519]
[1737646177227,1.95390499,104210.0,104200.0,1.5976162]
[1737646177483,1.88015499,104210.0,104200.0,1.32570282]
[1737646177679,1.88015499,104210.0,104200.0,1.2476162]
[1737646177902,1.88015499,104210.0,104200.0,1.26811519]
[1737646178108,1.84711368,104210.0,104200.0,1.26811519]
[1737646178310,1.84711368,104210.0,104200.0,1.21811519]
[1737646178522,1.84711368,104210.0,104200.0,0.245969]
[1737646178695,1.84711368,104210.0,104200.0,0.315969]
[1737646178944,1.84711368,104210.0,104200.0,0.35775055]
[1737646179145,1.80872968,104210.0,104200.0,0.35775055]
[1737646179366,0.32992067,104210.0,104200.0,0.35775055]
[1737646179588,0.0001427,104250.0,104240.0,0.245932]
[1737646179793,0.00029184,104250.0,104240.0,0.245932]
[1737646181587,0.00029184,104250.0,104240.0,0.095932]
[1737646182171,0.00029184,104250.0,104200.0,1.17284466]
[1737646182172,0.00029184,104250.0,104190.0,2.191952]
[1737646182406,0.191911,104220.0,104190.0,2.383892]
[1737646182600,0.0463,104220.0,104200.0,0.287889]
[1737646182778,0.076,104210.0,104200.0,0.095963]
[1737646182980,0.0463,104220.0,104190.0,2.433885]
[1737646183320,0.076,104240.0,104230.0,0.095941]
[1737646183527,0.076,104240.0,104220.0,0.479717]
[1737646183771,0.076,104240.0,104230.0,0.095941]
[1737646183965,0.267874,104240.0,104200.0,0.191925]
[1737646184179,0.36395911,104240.0,104220.0,0.287851]
[1737646184373,0.287841,104230.0,104200.0,0.437898]
[1737646184587,0.287841,104230.0,104210.0,0.095959]
[1737646184938,0.28775303,104230.0,104210.0,0.095959]
[1737646185129,0.55584011,104240.0,104210.0,0.287878]
[1737646185323,0.07614911,104240.0,104200.0,0.15]
[1737646185526,0.07614911,104240.0,104220.0,0.287843]
[1737646185779,0.26802411,104240.0,104200.0,0.15]
[1737646185978,0.287827,104230.0,104210.0,0.095958]
[1737646186212,0.095944,104230.0,104210.0,0.287875]
[1737646186443,0.45990111,104240.0,104210.0,0.287875]
[1737646186641,0.0956332,104240.0,104230.0,0.095941]
[1737646186817,0.07614911,104240.0,104220.0,0.47972]
[1737646187021,0.07614911,104240.0,104220.0,0.095944]
[1737646187179,0.36395211,104240.0,104210.0,0.19192]
[1737646187381,0.00014911,104240.0,104230.0,0.245941]
[1737646187587,0.00014911,104240.0,104230.0,0.268941]
[1737646187805,0.00014911,104240.0,104230.0,0.338941]
[1737646188050,1.1e-07,104240.0,104230.0,0.338941]
[1737646188252,1.1e-07,104240.0,104230.0,0.268941]
[1737646188468,1.1e-07,104240.0,104230.0,0.318941]
[1737646188643,1.1e-07,104240.0,104230.0,0.307302]
[1737646188843,1.1e-07,104240.0,104230.0,0.334302]
[1737646189077,1.1e-07,104240.0,104230.0,0.357302]
[1737646189218,1.1e-07,104240.0,104230.0,0.284302]
[1737646190279,1.1e-07,104240.0,104230.0,0.038361]
[1737646190456,0.04850011,104240.0,104230.0,0.095941]
[1737646190653,0.04864251,104240.0,104230.0,0.095941]
[1737646191090,0.04864251,104240.0,104220.0,0.383771]
[1737646191270,0.33644851,104240.0,104220.0,0.095943]
[1737646191456,0.33644851,104240.0,104220.0,0.287844]
[1737646191658,0.175442,104230.0,104210.0,0.28786]
[1737646191999,0.175447,104230.0,104210.0,0.095957]
[1737646192209,0.38658507,104230.0,104210.0,0.095959]
[1737646192386,0.38658507,104230.0,104200.0,0.287888]
[1737646192387,0.095951,104220.0,104200.0,0.287888]
[1737646192583,0.57847807,104230.0,104210.0,0.095959]
[1737646192930,0.0795,104230.0,104220.0,0.09595]
[1737646194198,0.271392,104230.0,104190.0,2.380337]
[1737646194399,0.095955,104220.0,104200.0,0.095967]
[1737646194567,0.095955,104220.0,104200.0,0.479842]
[1737646194765,0.095955,104220.0,104200.0,0.287904]
[1737646195002,0.287857,104220.0,104200.0,0.287904]
[1737646195516,0.463288,104230.0,104200.0,0.47983]
[1737646195860,0.559237,104230.0,104210.0,0.095957]
[1737646196093,0.0795,104230.0,104210.0,0.287865]
[1737646196327,0.175441,104230.0,104210.0,0.479776]
[1737646196666,0.0795,104230.0,104220.0,0.09595]
[1737646196835,0.0795,104230.0,104210.0,0.671679]
[1737646197030,0.0795,104230.0,104220.0,0.09595]
[1737646198774,0.0795,104230.0,104200.0,0.383866]
[1737646198973,0.0795,104230.0,104220.0,0.09595]
[1737646199136,0.175442,104230.0,104210.0,0.287857]
[1737646199454,0.0795,104230.0,104220.0,0.09595]
[1737646199860,0.0795,104230.0,104210.0,0.575725]
[1737646200064,0.095969,104200.0,104190.0,2.0]
[1737646200243,0.341901,104220.0,104190.0,2.0]
[1737646200244,0.383868,104210.0,104190.0,2.0]
[1737646200457,0.0484,104200.0,104190.0,2.095973]
[1737646201474,0.0484,104200.0,104190.0,2.096122]
[1737646202019,0.144369,104200.0,104190.0,2.000149]
[1737646202232,0.144369,104200.0,104190.0,2.096127]
[1737646202233,0.0484,104200.0,104190.0,2.096127]
[1737646202798,0.0484,104200.0,104190.0,2.09642583]
[1737646203002,0.00978023,104210.0,104200.0,0.191933]
[1737646203211,0.1254,104230.0,104220.0,0.09595]
[1737646203404,0.509191,104230.0,104200.0,0.191926]
[1737646203603,0.287862,104220.0,104200.0,0.287891]
[1737646203980,0.15420616,104230.0,104190.0,2.00044783]
[1737646204301,0.15420616,104230.0,104220.0,0.09595]
[1737646204302,0.13512472,104230.0,104220.0,0.09595]
[1737646205366,0.245958,104220.0,104200.0,0.095968]
[1737646205575,0.287868,104220.0,104200.0,0.287905]
[1737646205754,0.287881,104210.0,104190.0,2.28837383]
[1737646205952,0.287867,104220.0,104200.0,0.095968]
[1737646206113,0.61484872,104230.0,104210.0,0.095957]
[1737646206312,0.42295472,104230.0,104210.0,0.287876]
[1737646206531,0.23106872,104230.0,104210.0,0.479779]
[1737646206733,0.42295172,104230.0,104210.0,0.479779]
[1737646206950,0.23106872,104230.0,104210.0,0.479779]
[1737646207317,0.13512472,104230.0,104220.0,0.09595]
[1737646207450,0.1254,104230.0,104220.0,0.09595]
[1737646207649,0.0001424,104240.0,104230.0,0.095941]
[1737646208854,0.0001424,104240.0,104230.0,0.245941]
[1737646209102,0.0001424,104240.0,104230.0,0.32569083]
[1737646209936,0.0001424,104240.0,104230.0,0.36869083]
[1737646210133,0.0001424,104240.0,104230.0,0.29869083]
[1737646210309,0.0001424,104240.0,104230.0,0.31869083]
[1737646210510,0.0001424,104240.0,104230.0,0.27569083]
[1737646210710,0.0001424,104240.0,104230.0,0.34569083]
[1737646210914,4e-07,104240.0,104230.0,0.36869083]
[1737646211137,4e-07,104240.0,104230.0,0.31869083]
[1737646211337,4e-07,104240.0,104230.0,0.29869083]
[1737646211538,4e-07,104240.0,104230.0,0.36869083]
[1737646212297,4e-07,104240.0,104230.0,0.34869083]
[1737646212497,4e-07,104240.0,104230.0,0.31869083]
[1737646212816,4e-07,104240.0,104230.0,0.32569083]
[1737646213050,4e-07,104240.0,104230.0,0.34569083]
[1737646213219,4e-07,104240.0,104230.0,0.36869083]
[1737646213432,4e-07,104240.0,104230.0,0.29869083]
[1737646213814,4e-07,104240.0,104230.0,0.12569083]
[1737646213998,3.2e-07,104320.0,104310.0,0.02]
[1737646214210,0.12896,104370.0,104340.0,0.09584]
[1737646214434,0.43542466,104370.0,104340.0,0.09584]
[1737646214591,0.0007966,104350.0,104330.0,0.310529]
[1737646214787,0.0007966,104350.0,104330.0,0.023]
[1737646214990,0.1507966,104350.0,104330.0,0.023]
[1737646215223,0.363693,104340.0,104310.0,0.095861]
[1737646215429,0.122,104340.0,104330.0,0.095849]
[1737646215636,0.0007966,104350.0,104340.0,0.26884]
[1737646216256,0.0007966,104350.0,104340.0,0.28884]
[1737646216711,0.0007966,104350.0,104340.0,0.33884]
[1737646216918,6e-05,104370.0,104360.0,0.245822]
[1737646217122,0.00020921,104370.0,104360.0,0.245822]
[1737646217530,0.00020921,104370.0,104360.0,0.268822]
[1737646217747,0.00020921,104370.0,104360.0,0.288822]
[1737646217959,2.1e-07,104370.0,104360.0,0.34573894]
[1737646218366,0.08395905,104410.0,104400.0,0.245785]
[1737646218567,0.08402011,104410.0,104400.0,0.245785]
[1737646219352,0.00014897,104410.0,104400.0,1.24093119]
[1737646219552,0.00014897,104410.0,104400.0,1.27093119]
[1737646219759,0.00014897,104410.0,104400.0,0.245785]
[1737646220530,0.00014897,104410.0,104400.0,0.095785]
[1737646221402,0.00014897,104410.0,104400.0,2.095785]
[1737646221648,0.00014897,104410.0,104400.0,2.245785]
[1737646222073,0.00014897,104410.0,104400.0,3.19793119]
[1737646222283,9.7e-07,104410.0,104400.0,3.21793119]
[1737646222488,0.1155315,104430.0,104420.0,0.115767]
[1737646222693,0.0580755,104430.0,104420.0,1.27091319]
[1737646222908,0.0389235,104430.0,104420.0,1.29091319]
[1737646223106,5e-07,104440.0,104430.0,0.315757]
[1737646223308,5e-07,104440.0,104430.0,0.338757]
[1737646223467,9e-07,104460.0,104450.0,0.315739]
[1737646223664,9e-07,104460.0,104450.0,1.26788519]
[1737646223870,0.13247814,104480.0,104470.0,0.288721]
[1737646224103,0.13247814,104480.0,104470.0,1.27086719]
[1737646224324,0.03676814,104480.0,104470.0,1.21786719]
[1737646224482,0.1017626,104500.0,104490.0,0.095702]
[1737646224683,0.1017626,104500.0,104490.0,1.04784819]
[1737646225087,0.1017626,104500.0,104490.0,0.00049719]
[1737646225288,0.1974556,104500.0,104490.0,0.00049719]
[1737646225524,0.3256556,104500.0,104490.0,0.00049719]
[1737646226092,0.5710313,104500.0,104490.0,0.00049719]
[1737646226554,0.5910313,104500.0,104490.0,0.00049719]
[1737646226886,0.191413,104490.0,104450.0,0.27664376]
[1737646227066,0.095714,104480.0,104450.0,0.37287419]
[1737646227269,0.0001421,104480.0,104460.0,0.095726]
[1737646227498,0.0001421,104480.0,104450.0,0.46860519]
[1737646227499,0.0958571,104480.0,104450.0,0.37286219]
[1737646227708,0.0001421,104480.0,104460.0,0.19146]
[1737646227968,0.0001421,104480.0,104470.0,0.095721]
[1737646228179,0.0001421,104480.0,104470.0,1.04786719]
[1737646228387,0.0001421,104480.0,104470.0,0.245721]
[1737646228566,0.0001421,104480.0,104470.0,1.19786719]
[1737646228986,0.0001421,104480.0,104470.0,1.23613519]
[1737646229189,0.0001421,104480.0,104470.0,1.19786719]
[1737646229388,0.0001421,104480.0,104470.0,0.095721]
[1737646229730,0.0001421,104480.0,104470.0,0.115721]
[1737646229939,0.0001421,104480.0,104470.0,0.165721]
[1737646230142,0.1017626,104500.0,104490.0,0.315702]
[1737646230403,0.1017626,104500.0,104490.0,1.26784819]
[1737646230715,0.0634886,104500.0,104490.0,1.56784819]
[1737646230945,0.0060716,104500.0,104490.0,1.21784819]
[1737646231303,6e-07,104500.0,104490.0,1.26784819]
[1737646231510,6e-07,104500.0,104490.0,1.26814561]
[1737646231928,0.0001029,104520.0,104510.0,0.095684]
[1737646232339,0.0001029,104520.0,104510.0,0.245684]
[1737646232680,9e-07,104520.0,104510.0,1.29083019]
[1737646233085,4e-07,104530.0,104520.0,0.023]
[1737646233287,0.1,104570.0,104560.0,0.095638]
[1737646234058,0.1,104570.0,104560.0,0.245638]
[1737646234461,0.1,104570.0,104560.0,0.24613543]
[1737646235106,0.1,104570.0,104560.0,0.09613543]
[1737646235639,0.1,104570.0,104560.0,0.24613543]
[1737646236259,0.1,104570.0,104560.0,0.09613543]
[1737646236468,0.1,104570.0,104560.0,1.06828162]
[1737646236706,0.1,104570.0,104560.0,1.19828162]
[1737646236908,0.1,104570.0,104560.0,1.26828162]
[1737646237527,0.00437,104570.0,104560.0,1.29128162]
[1737646237656,0.00437,104570.0,104560.0,1.76128162]
[1737646238032,0.0001423,104590.0,104580.0,0.05]
[1737646238174,0.0001423,104590.0,104580.0,1.14076619]
[1737646238356,0.0001423,104590.0,104580.0,1.11776619]
[1737646238564,0.0001423,104590.0,104580.0,1.04776619]
[1737646238766,0.0001423,104590.0,104580.0,0.09562]
[1737646239227,0.191131,104640.0,104610.0,0.241182]
[1737646239437,0.15,104660.0,104610.0,0.241182]
[1737646239630,0.191143,104640.0,104610.0,0.05]
[1737646239831,0.286729,104630.0,104600.0,0.28679]
[1737646240061,0.095585,104620.0,104590.0,0.336811]
[1737646240271,0.286756,104620.0,104590.0,0.432419]
[1737646240443,0.286756,104620.0,104590.0,0.43291643]
[1737646240709,0.095585,104620.0,104590.0,0.43291643]
[1737646240913,0.382311,104630.0,104600.0,0.286801]
[1737646241087,0.191149,104630.0,104600.0,0.402408]
[1737646241243,0.191149,104630.0,104610.0,0.09559]
[1737646241244,0.095579,104630.0,104610.0,0.09559]
[1737646241445,0.095575,104630.0,104600.0,0.43238]
[1737646241790,0.095602,104600.0,104590.0,0.00049743]
[1737646241980,0.095619,104590.0,104520.0,0.19134]
[1737646242229,0.286865,104580.0,104570.0,0.00049756]
[1737646242433,0.22062,104580.0,104570.0,0.00049756]
[1737646243085,0.125,104580.0,104570.0,0.09612656]
[1737646243510,0.125,104580.0,104570.0,0.00049756]
[1737646243689,0.125,104580.0,104570.0,0.09612656]
[1737646243921,0.125,104580.0,104570.0,0.00049756]
[1737646243922,0.22062,104580.0,104570.0,0.00049756]
[1737646244354,0.125,104580.0,104570.0,0.00049756]
[1737646244976,0.125,104580.0,104570.0,0.14612656]
[1737646245177,0.11433763,104600.0,104590.0,0.095611]
[1737646245178,0.0799,104600.0,104590.0,0.095611]
[1737646245390,0.0799,104600.0,104580.0,0.432454]
[1737646245391,0.0799,104600.0,104580.0,0.432453]
[1737646245602,0.175502,104600.0,104580.0,0.528066]
[1737646245811,0.0799,104600.0,104570.0,0.00049756]
[1737646246027,0.16169492,104610.0,104590.0,0.095608]
[1737646246240,0.0466,104610.0,104600.0,0.05]
[1737646246460,0.0466,104610.0,104600.0,0.145602]
[1737646246664,0.095595,104610.0,104590.0,0.528022]
[1737646246846,0.095602,104600.0,104590.0,0.05]
[1737646247109,0.286816,104600.0,104580.0,0.095619]
[1737646247302,0.191197,104610.0,104580.0,0.095613]
[1737646247512,0.270714,104600.0,104570.0,0.24174556]
[1737646247721,0.0795,104600.0,104590.0,0.095611]
[1737646247922,0.0795,104600.0,104590.0,2.145611]
[1737646248135,0.175102,104600.0,104590.0,2.0]
[1737646248774,0.271659,104570.0,104530.0,0.191332]
[1737646248989,0.271659,104570.0,104550.0,0.095647]
[1737646249201,0.0804,104570.0,104560.0,0.145638]
[1737646249406,0.27166,104570.0,104540.0,0.05]
[1737646249613,0.095644,104560.0,104540.0,0.14565]
[1737646249820,0.095648,104550.0,104540.0,0.05]
[1737646250233,0.095648,104550.0,104530.0,0.00049759]
[1737646250234,0.095657,104540.0,104530.0,0.00049759]
[1737646250441,0.3410327,104540.0,104530.0,0.00049759]
[1737646251066,0.4169327,104540.0,104530.0,0.00049759]
[1737646251270,0.4169327,104540.0,104530.0,0.09616359]
[1737646251271,0.0759,104540.0,104530.0,0.09616359]
[1737646251472,0.045,104560.0,104530.0,0.19181959]
[1737646251676,0.045,104560.0,104540.0,0.095657]
[1737646251677,0.00775302,104550.0,104540.0,0.095657]
[1737646251885,0.0795,104570.0,104550.0,0.05]
[1737646251886,0.19415489,104570.0,104550.0,0.05]
[1737646252103,0.0795,104570.0,104560.0,0.05]
[1737646252325,0.0795,104570.0,104560.0,0.145638]
[1737646252946,0.0495,104590.0,104580.0,0.09562]
[1737646253155,0.5321917,104600.0,104580.0,0.09562]
[1737646253156,0.561032,104600.0,104580.0,0.09562]
[1737646253375,0.478108,104580.0,104560.0,0.145635]
[1737646253571,0.095629,104570.0,104560.0,0.05]
[1737646254004,0.095638,104560.0,104550.0,0.05]
[1737646254203,0.4366167,104580.0,104560.0,0.24177359]
[1737646254204,0.095628,104580.0,104560.0,0.24177359]
[1737646254429,0.095629,104570.0,104560.0,0.05049759]
[1737646254632,0.095629,104570.0,104560.0,0.00049759]
[1737646256301,0.095629,104570.0,104560.0,0.09613559]
[1737646256507,0.5195817,104600.0,104560.0,0.05049759]
[1737646256710,0.0194573,104610.0,104600.0,0.286797]
[1737646256909,0.23226625,104620.0,104600.0,0.336801]
[1737646257133,0.23226625,104620.0,104580.0,0.191231]
[1737646257134,0.095604,104600.0,104580.0,0.191231]
[1737646257390,0.095604,104600.0,104590.0,0.095611]
[1737646257502,0.095602,104600.0,104580.0,0.432459]
[1737646257707,0.33485095,104620.0,104580.0,0.241228]
[1737646257914,0.095604,104600.0,104590.0,0.14561]
[1737646258126,0.382372,104610.0,104580.0,0.14611159]
[1737646258337,0.478026,104600.0,104580.0,0.33734959]
[1737646258566,0.095611,104590.0,104580.0,0.00049759]
[1737646259217,0.118611,104590.0,104580.0,0.00049759]
[1737646259422,0.118611,104590.0,104530.0,0.38293804]
[1737646259423,0.0811,104590.0,104530.0,0.38293804]
[1737646259650,0.286932,104560.0,104540.0,0.286969]
[1737646259854,0.191267,104570.0,104550.0,0.336939]
[1737646260057,0.53687304,104590.0,104560.0,0.286911]
[1737646260058,0.286875,104580.0,104560.0,0.286911]
[1737646260253,0.095629,104570.0,104560.0,0.336912]
[1737646260515,0.095629,104570.0,104560.0,0.145637]
[1737646260725,0.095629,104570.0,104560.0,0.05]
[1737646260935,0.095635,104570.0,104560.0,0.05]
[1737646261081,0.095629,104570.0,104560.0,0.05]
[1737646261283,0.095652,104550.0,104530.0,0.37602997]
[1737646261482,0.191266,104570.0,104540.0,0.05]
[1737646261681,0.095628,104580.0,104560.0,0.095636]
[1737646261927,0.35326,104590.0,104560.0,0.05]
[1737646262172,0.35326,104590.0,104550.0,0.528216]
[1737646262173,0.095629,104570.0,104550.0,0.528216]
[1737646262385,0.573761,104580.0,104560.0,0.145638]
[1737646262585,0.09563,104570.0,104550.0,0.432571]
[1737646262812,0.09563,104570.0,104550.0,0.52821]
[1737646263012,0.478164,104570.0,104550.0,0.095644]
[1737646263165,0.478164,104570.0,104550.0,0.528233]
[1737646263166,0.286893,104570.0,104550.0,0.528233]
[1737646263369,0.478161,104570.0,104550.0,0.286938]
[1737646263576,0.28687,104580.0,104560.0,0.095638]
[1737646263789,0.095629,104570.0,104560.0,0.095638]
[1737646263992,0.095629,104570.0,104560.0,0.286911]
[1737646264208,0.095629,104570.0,104550.0,0.478211]
[1737646264372,0.095643,104560.0,104540.0,0.528269]
[1737646264738,0.286896,104570.0,104550.0,0.286935]
[1737646264876,0.191249,104580.0,104550.0,0.286935]
[1737646264877,0.382502,104580.0,104560.0,0.286914]
[1737646265083,0.286874,104580.0,104570.0,0.095629]
[1737646265283,0.1078843,104590.0,104570.0,0.191258]
[1737646265654,0.0001425,104580.0,104570.0,0.286871]
[1737646265835,0.0001425,104580.0,104560.0,0.38282725]
[1737646266036,0.0001425,104580.0,104570.0,0.095629]
[1737646266194,0.0001425,104580.0,104570.0,0.00049793]
[1737646266396,0.0957625,104580.0,104570.0,0.00049793]
[1737646266596,0.1187625,104580.0,104570.0,0.00049793]
[1737646266799,0.1998625,104580.0,104570.0,0.00049793]
[1737646267214,0.1998625,104580.0,104530.0,0.19162204]
[1737646267215,0.2311,104550.0,104530.0,0.00029904]
[1737646267430,0.2311,104550.0,104510.0,0.038257]
[1737646267431,0.191329,104540.0,104510.0,0.191368]
[1737646267608,0.191329,104540.0,104510.0,0.528413]
[1737646267609,0.095668,104530.0,104510.0,0.528413]
[1737646267812,0.091675,104520.0,104510.0,0.00050055]
[1737646268205,0.091675,104520.0,104500.0,0.08261329]
[1737646268206,0.326784,104510.0,104500.0,0.06933982]
[1737646268452,0.095712,104480.0,104470.0,0.00029799]
[1737646268679,0.095712,104480.0,104470.0,0.00050065]
[1737646268680,0.245712,104480.0,104470.0,0.00050065]
[1737646268872,0.245712,104480.0,104450.0,0.00029799]
[1737646268873,0.11873,104460.0,104450.0,0.00029799]
[1737646269027,0.11873,104460.0,104420.0,0.00029799]
[1737646269028,0.45375723,104460.0,104420.0,0.00029799]
[1737646269245,0.095757,104430.0,104420.0,0.00029799]
[1737646269611,0.15565407,104430.0,104420.0,0.00029799]
[1737646269818,0.13113853,104430.0,104420.0,0.00029799]
[1737646270040,0.32796673,104430.0,104420.0,0.00029799]
[1737646270254,0.17796673,104430.0,104420.0,0.00029799]
[1737646270381,0.15413853,104430.0,104420.0,0.00029799]
[1737646270581,0.9003967,104440.0,104420.0,0.09606399]
[1737646270582,0.176254,104440.0,104420.0,0.09606399]
[1737646270788,0.07350513,104440.0,104420.0,0.19183199]
[1737646270987,0.16925713,104440.0,104420.0,0.00029799]
[1737646271242,0.39615166,104440.0,104420.0,0.00029799]
[1737646271482,0.07350513,104440.0,104430.0,0.095757]
[1737646271722,0.01988404,104460.0,104450.0,0.095739]
[1737646271955,0.00049953,104460.0,104450.0,0.145739]
[1737646272271,0.00049953,104460.0,104450.0,0.315739]
[1737646272672,0.00049953,104460.0,104450.0,0.095739]
[1737646272865,0.00049953,104460.0,104450.0,0.315739]
[1737646273066,0.00049953,104460.0,104450.0,0.265739]
[1737646273285,0.00049953,104460.0,104450.0,0.315739]
[1737646273449,0.00049953,104460.0,104450.0,0.095739]
[1737646273680,0.00049953,104460.0,104450.0,0.145739]
[1737646274408,0.00049953,104460.0,104450.0,0.315739]
[1737646274616,0.00049953,104460.0,104450.0,0.165739]
[1737646274847,0.00049953,104460.0,104430.0,0.3415]
[1737646274848,0.00049953,104460.0,104430.0,0.1915]
[1737646275059,0.07799953,104460.0,104450.0,0.095739]
[1737646275272,0.00049953,104460.0,104450.0,0.095739]
[1737646276107,0.09623353,104460.0,104440.0,0.287227]
[1737646276256,0.19196353,104460.0,104430.0,0.433012]
[1737646276453,0.09623253,104460.0,104440.0,0.095744]
[1737646276692,0.09623253,104460.0,104440.0,0.28724]
[1737646276934,0.02349953,104460.0,104450.0,0.095739]
[1737646277083,0.00049953,104460.0,104450.0,0.095739]
[1737646277292,0.00049953,104460.0,104450.0,0.145739]
[1737646277684,0.00049953,104460.0,104450.0,0.165739]
[1737646277887,0.00049953,104460.0,104450.0,0.265739]
[1737646278090,0.00049953,104460.0,104450.0,0.365739]
[1737646278341,0.00049953,104460.0,104450.0,0.265739]
[1737646278515,0.00049953,104460.0,104450.0,0.262739]
[1737646279109,0.00049953,104460.0,104450.0,0.312739]
[1737646279476,0.00049953,104460.0,104450.0,0.242739]
[1737646279680,0.00064223,104460.0,104450.0,0.262739]
[1737646279961,0.00064223,104460.0,104450.0,0.162739]
[1737646280363,0.00064223,104460.0,104450.0,0.092739]
[1737646280690,0.00064223,104460.0,104450.0,0.162739]
[1737646280883,0.00064223,104460.0,104450.0,0.312739]
[1737646281309,2.3e-07,104460.0,104450.0,1.31488519]
[1737646281708,2.3e-07,104460.0,104450.0,1.21488519]
[1737646281919,2.3e-07,104460.0,104450.0,0.301013]
[1737646282118,2.3e-07,104460.0,104450.0,0.131013]
[1737646282341,2.3e-07,104460.0,104450.0,0.092739]
[1737646283749,0.28720823,104460.0,104440.0,0.09604067]
[1737646283966,0.17864123,104470.0,104450.0,0.095737]
[1737646284175,0.27437123,104470.0,104450.0,0.28735897]
[1737646284551,0.27437123,104470.0,104450.0,0.47882797]
[1737646284720,0.1575997,104470.0,104450.0,0.00014897]
[1737646284927,0.3411057,104460.0,104450.0,0.00014897]
[1737646285090,0.3641057,104460.0,104450.0,0.00014897]
[1737646285290,0.5141057,104460.0,104450.0,0.00014897]
[1737646286222,0.5593057,104460.0,104450.0,0.00014897]
[1737646286865,0.5591057,104460.0,104450.0,0.00014897]
[1737646287070,0.2274,104450.0,104420.0,0.00029799]
[1737646287279,0.118757,104430.0,104420.0,0.00079752]
[1737646287488,0.268757,104430.0,104420.0,0.00079752]
[1737646287667,0.095757,104430.0,104420.0,0.09656452]
[1737646288020,0.0774,104450.0,104430.0,0.095757]
[1737646288021,0.364631,104450.0,104430.0,0.095757]
[1737646288308,0.287248,104440.0,104420.0,0.33807652]
[1737646288542,0.268887,104450.0,104420.0,0.24231752]
[1737646288762,0.09575,104440.0,104420.0,0.52959952]
[1737646288953,0.287248,104440.0,104420.0,0.33807652]
[1737646289156,0.383007,104440.0,104420.0,0.05079752]
[1737646289453,0.095754,104440.0,104430.0,0.095757]
[1737646289659,0.5657478,104450.0,104430.0,0.287272]